bitfinex-derivatives/quotes_ETHF0:USTF0_20241023
["timestamp","ask_amount","ask_price","bid_price","bid_amount"]
[1729680855981,1.78747,2582.3,2582.2,0.38747]
[1729680856175,1.78747,2582.3,2582.2,1.78747]
[1729680856373,1.4,2582.4,2582.2,1.4]
[1729680856573,1.78743,2582.6,2582.5,0.38743]
[1729680856774,0.4179,2582.7,2582.5,0.38743]
[1729680856775,0.4179,2582.7,2582.5,1.4]
[1729680856989,2.20531,2582.7,2582.6,1.78741]
[1729680857973,0.38741,2582.6,2582.5,2.17423]
[1729680858168,1.78741,2582.6,2582.5,1.7868]
[1729680858476,1.4,2582.6,2582.3,0.38745]
[1729680858680,1.4,2582.6,2582.1,0.392]
[1729680858681,0.38747,2582.3,2582.2,0.38746]
[1729680858978,0.38747,2582.3,2582.2,1.78746]
[1729680859580,0.38747,2582.3,2582.2,1.4]
[1729680859783,0.79097,2582.3,2582.2,1.78747]
[1729680859982,0.79097,2582.3,2582.2,1.4]
[1729680860186,1.8035,2582.3,2582.2,1.4]
[1729680860379,0.38747,2582.2,2582.1,1.16628]
[1729680860775,11.08013345,2582.2,2581.9,2.03255954]
[1729680860978,0.3875,2582.0,2581.9,2.03255954]
[1729680861373,11.64321983,2582.0,2581.9,2.03255954]
[1729680862183,11.64321983,2582.0,2581.4,40.8]
[1729680862184,11.25571983,2582.0,2581.4,40.8]
[1729680862373,0.38758,2581.5,2581.4,40.8]
[1729680865589,3.98884,2581.8,2581.4,40.8]
[1729680865990,0.38758,2581.5,2581.4,40.8]
[1729680872584,0.38758,2581.5,2581.3,0.3921]
[1729680872585,0.38759,2581.4,2581.3,0.3921]
[1729680873482,0.38759,2581.4,2581.3,0.77971]
[1729680873684,0.38759,2581.4,2581.3,0.3921]
[1729680873986,0.38759,2581.4,2581.3,0.77971]
[1729680874183,0.38759,2581.4,2581.3,0.3921]
[1729680874795,0.38759,2581.4,2581.3,0.77971]
[1729680875093,0.38759,2581.4,2581.3,0.3921]
[1729680880399,1.78759,2581.4,2581.3,0.3921]
[1729680880996,0.38759,2581.4,2581.3,0.3921]
[1729680886205,1.78759,2581.4,2581.3,0.3921]
[1729680900011,6.10182745,2581.4,2581.3,0.3921]
[1729680902613,13.76465745,2581.4,2580.9,40.8]
[1729680902913,1.78765,2581.0,2580.9,40.8]
[1729680903222,5.83432051,2581.0,2580.9,40.8]
[1729680903515,0.38767,2580.9,2580.8,1.2587]
[1729680903708,1.78767,2580.9,2580.8,1.2587]
[1729680903909,1.78767,2580.9,2580.8,42.0587]
[1729680904416,1.78767,2580.9,2580.8,1.2587]
[1729680905313,0.38767,2580.9,2580.8,2.6587]
[1729680905818,2.36913,2581.1,2580.8,2.6587]
[1729680905819,0.38767,2581.0,2580.9,0.38765]
[1729680906113,0.988,2581.9,2581.4,0.38758]
[1729680906114,0.3876,2581.5,2581.4,0.38758]
[1729680906319,0.3876,2581.5,2581.4,1.78758]
[1729680906822,0.3876,2581.5,2581.4,2.80356307]
[1729680907009,3.2078,2581.7,2581.4,3.07211803]
[1729680907214,3.59535,2581.7,2581.6,1.4]
[1729680907706,4.99535,2581.7,2581.6,1.4]
[1729680909525,3.59535,2581.7,2581.6,1.78756]
[1729680909819,3.59535,2581.7,2581.6,1.4]
[1729680910318,4.99535,2581.7,2581.6,2.41584532]
[1729680910508,0.38756,2581.6,2581.5,1.01584532]
[1729680910714,0.38756,2581.6,2581.5,4.08615245]
[1729680910913,1.78756,2581.6,2581.5,1.01584532]
[1729680911120,1.78756,2581.6,2581.5,1.4]
[1729680911817,1.4,2581.6,2581.5,1.4]
[1729680912019,1.78756,2581.6,2581.5,1.4]
[1729680912318,1.4,2581.6,2581.4,2.41584532]
[1729680912520,1.78758,2581.5,2581.4,2.41584532]
[1729680913016,0.38758,2581.5,2581.4,2.80343532]
[1729680915025,0.38758,2581.5,2581.4,4.47458901]
[1729680916518,0.38758,2581.5,2581.4,8.34818901]
[1729680916722,0.38758,2581.5,2581.4,8.8563183]
[1729680916920,5.57664,2581.8,2581.4,8.4687283]
[1729680917119,2.73643,2582.2,2581.7,1.4]
[1729680917120,1.4,2582.1,2581.7,1.4]
[1729680917428,0.38753,2581.8,2581.7,4.61048693]
[1729680917619,0.38753,2581.8,2581.7,6.28068727]
[1729680918520,0.38753,2581.8,2581.7,4.61048693]
[1729680918728,0.38753,2581.8,2581.7,6.01048693]
[1729680919223,1.78753,2581.8,2581.7,5.62296693]
[1729680919418,1.78753,2581.8,2581.7,1.4]
[1729680919923,1.78753,2581.8,2581.7,1.78755]
[1729680921726,1.78753,2581.8,2581.7,1.4]
[1729680924929,1.78753,2581.8,2581.5,2.41516693]
[1729680924930,1.4,2581.8,2581.5,2.41516693]
[1729680925135,1.4,2581.8,2581.5,2.80273693]
[1729680925136,0.38756,2581.6,2581.5,2.80273693]
[1729680925331,0.38756,2581.6,2581.5,1.78757]
[1729680925735,0.38756,2581.6,2581.5,1.4]
[1729680926540,0.38756,2581.6,2581.5,1.78758]
[1729680926731,0.38756,2581.6,2581.5,1.4]
[1729680928435,1.78756,2581.6,2581.5,1.4]
[1729680929738,1.78756,2581.6,2581.5,1.78758]
[1729680929942,0.38756,2581.6,2581.5,1.78758]
[1729680930437,2.36894,2581.6,2581.2,1.40277693]
[1729680930630,0.38761,2581.4,2581.3,1.7876]
[1729680930834,0.38761,2581.4,2581.3,1.78761]
[1729680933641,0.38761,2581.4,2581.3,2.80277693]
[1729680934343,0.38761,2581.4,2581.3,1.78761]
[1729680934648,0.38761,2581.4,2581.3,2.80277693]
[1729680935348,0.38761,2581.4,2581.3,2.20691]
[1729680935849,0.38761,2581.4,2581.3,3.22207693]
[1729680936044,1.4,2581.6,2581.5,0.38756]
[1729680936045,0.38758,2581.6,2581.5,0.38756]
[1729680936252,0.38756,2581.7,2581.6,0.38754]
[1729680936435,0.38756,2581.7,2581.6,1.78754]
[1729680937247,4.56188,2582.0,2581.7,0.38753]
[1729680937248,0.38755,2581.8,2581.7,0.38753]
[1729680937539,0.38755,2581.8,2581.7,2.20703]
[1729680939249,1.4,2582.0,2581.7,1.8195]
[1729680939452,0.3875,2582.0,2581.9,1.78752]
[1729680941453,0.3875,2582.0,2581.9,1.4]
[1729680941642,0.38753,2581.8,2581.7,4.01483]
[1729680941846,1.78753,2581.8,2581.7,5.41483]
[1729680943346,1.78753,2581.8,2581.7,5.41485]
[1729680948353,0.38753,2581.8,2581.7,2.20705]
[1729680948548,0.38753,2581.8,2581.7,1.8195]
[1729680948757,0.38753,2581.8,2581.7,2.20705]
[1729680950762,0.38753,2581.8,2581.7,2.63025]
[1729680951569,0.38753,2581.8,2581.7,3.64541693]
[1729680951969,0.38753,2581.8,2581.7,2.63025]
[1729680954376,0.38753,2581.8,2581.7,3.64541693]
[1729680954974,0.38753,2581.8,2581.7,2.63025]
[1729680955475,0.38753,2581.8,2581.7,3.64541693]
[1729680956575,0.38753,2581.8,2581.7,2.63025]
[1729680957777,0.38753,2581.8,2581.7,3.64541693]
[1729680957978,0.38753,2581.8,2581.7,3.64646814]
[1729680958277,0.38753,2581.8,2581.7,5.31916424]
[1729680958471,0.38753,2581.8,2581.7,4.93163827]
[1729680958780,0.38753,2581.8,2581.7,3.25894971]
[1729680958971,0.38753,2581.8,2581.7,3.64649971]
[1729680959272,0.38753,2581.8,2581.7,5.31921103]
[1729680961970,0.38753,2581.8,2581.7,4.30296132]
[1729680962170,0.38753,2581.8,2581.7,5.31932015]
[1729680962778,0.38753,2581.8,2581.7,4.93177015]
[1729680962974,0.38753,2581.8,2581.7,3.91541132]
[1729680963276,0.38753,2581.8,2581.7,5.31933447]
[1729680964179,3.2078,2582.3,2581.7,11.29529347]
[1729680964480,0.38745,2582.5,2582.4,0.38743]
[1729680964677,0.38745,2582.5,2582.4,45.27502847]
[1729680964874,0.38745,2582.5,2582.4,45.39544123]
[1729680965074,0.38745,2582.5,2582.4,45.27493512]
[1729680965274,0.38745,2582.5,2582.4,45.12595778]
[1729680965478,0.38745,2582.5,2582.4,43.6024295]
[1729680966375,3.2078,2582.9,2582.4,43.87000159]
[1729680966574,3.59517,2582.9,2582.8,1.4]
[1729680966774,3.59517,2582.9,2582.8,1.78738]
[1729680966978,3.59517,2582.9,2582.8,2.80177278]
[1729680967175,3.59517,2582.9,2582.8,1.01439278]
[1729680967375,3.59517,2582.9,2582.8,1.819]
[1729680968577,3.59517,2582.9,2582.8,2.20638]
[1729680969882,3.59517,2582.9,2582.8,1.819]
[1729680970192,3.59517,2582.9,2582.8,2.20638]
[1729680972490,0.38737,2582.9,2582.8,2.20638]
[1729680972685,0.38737,2582.9,2582.8,1.819]
[1729680975496,0.38737,2582.9,2582.8,2.2107]
[1729680976895,0.4265,2583.3,2582.8,2.2107]
[1729680977083,0.38732,2583.3,2583.2,1.78732]
[1729680977283,0.38732,2583.3,2582.8,4.98695]
[1729680977284,1.4,2583.3,2582.8,4.0185]
[1729680977589,0.38734,2583.1,2583.0,1.4]
[1729680977899,0.38734,2583.1,2583.0,1.59697386]
[1729680978491,0.38734,2583.1,2583.0,1.98432386]
[1729680978794,0.38734,2583.1,2583.0,1.59540381]
[1729680979002,0.38734,2583.1,2583.0,1.4]
[1729680979588,0.38734,2583.1,2583.0,1.59269454]
[1729680979988,1.4,2583.1,2582.8,0.8107]
[1729680980191,0.38737,2582.9,2582.8,1.19808]
[1729680980596,0.38737,2582.9,2582.8,5.07008]
[1729680980894,0.38737,2582.9,2582.8,5.46908]
[1729680981199,0.38737,2583.0,2582.9,0.38735]
[1729680982095,0.38737,2583.0,2582.9,1.78735]
[1729680984896,0.38737,2582.9,2582.8,0.818]
[1729680985195,0.79657,2582.9,2582.8,2.218]
[1729680985698,0.79657,2582.9,2582.8,2.60538]
[1729680985898,0.79657,2582.9,2582.8,2.218]
[1729680986093,0.38737,2582.9,2582.8,2.218]
[1729680986295,0.3874,2582.7,2582.6,0.407]
[1729680986493,0.3874,2582.7,2582.6,3.00191]
[1729680986695,0.3874,2582.7,2582.6,2.6145]
[1729680988303,0.3874,2582.7,2582.6,3.00191]
[1729680989104,0.3874,2582.7,2582.6,2.6145]
[1729680990710,0.3874,2582.7,2582.6,3.00191]
[1729680991195,0.3874,2582.7,2582.6,2.6145]
[1729680994106,0.3874,2582.7,2582.6,3.00191]
[1729680994604,0.3874,2582.7,2582.6,2.6145]
[1729680995602,0.3874,2582.7,2582.6,3.00191]
[1729680995994,0.3874,2582.7,2582.6,1.2145]
[1729680995995,1.7874,2582.7,2582.6,1.2145]
[1729680996196,1.7874,2582.7,2582.6,2.6145]
[1729680996404,0.3874,2582.7,2582.6,2.6145]
[1729680997407,0.3874,2582.7,2582.6,3.00191]
[1729680998507,0.3874,2582.7,2582.6,0.8075]
[1729680998508,1.7874,2582.7,2582.6,0.8075]
[1729680998711,1.7874,2582.7,2582.6,0.3984]
[1729680998712,2.2126,2582.7,2582.6,0.3984]
[1729680999608,0.8126,2582.7,2582.6,1.7984]
[1729680999809,0.3874,2582.7,2582.6,2.18581]
[1729681000109,0.3874,2582.8,2582.7,0.38739]
[1729681000308,0.3874,2582.8,2582.7,2.18429]
[1729681002311,0.38738,2582.9,2582.8,0.38737]
[1729681002512,0.38737,2583.0,2582.9,0.38734]
[1729681002713,0.38737,2583.0,2582.9,1.78734]
[1729681003714,3.2078,2583.2,2582.9,1.4]
[1729681003911,3.2078,2583.2,2582.8,0.3872]
[1729681003912,3.59512,2583.2,2583.1,1.4]
[1729681004322,3.59512,2583.2,2583.1,1.7948]
[1729681005919,0.38732,2583.2,2583.1,1.7948]
[1729681012625,0.38732,2583.2,2583.1,2.80919278]
[1729681013127,1.78732,2583.2,2583.1,1.7948]
[1729681013521,1.78732,2583.2,2583.1,0.3948]
[1729681013829,1.78732,2583.2,2583.1,1.7948]
[1729681014329,0.38732,2583.2,2583.1,1.7948]
[1729681021725,1.4,2583.2,2583.0,0.389]
[1729681021924,1.4,2583.2,2582.8,1.91072828]
[1729681021925,5.6674,2583.1,2582.8,0.7737]
[1729681022126,0.38737,2582.9,2582.8,0.7737]
[1729681022428,1.78737,2582.9,2582.8,0.7737]
[1729681022634,4.25937,2582.9,2582.8,1.7865]
[1729681023430,0.38737,2582.9,2582.8,1.7865]
[1729681023728,4.25937,2582.9,2582.8,1.7865]
[1729681024319,0.38737,2582.9,2582.8,1.7865]
[1729681025533,1.78737,2582.9,2582.8,1.7865]
[1729681026231,0.3874,2582.7,2582.6,1.79399278]
[1729681026427,0.3874,2582.7,2582.6,2.1796]
[1729681027631,0.8,2582.7,2582.6,2.1796]
[1729681031640,2.2,2582.7,2582.6,1.7929]
[1729681032637,0.3874,2582.7,2582.6,1.7929]
[1729681036344,1.7874,2582.7,2582.6,1.7929]
[1729681036842,0.3874,2582.7,2582.6,1.7929]
[1729681037841,0.3874,2582.7,2582.6,0.3929]
[1729681038049,0.3874,2582.7,2582.6,1.7929]
[1729681039147,1.7874,2582.7,2582.6,0.3929]
[1729681039743,1.7874,2582.7,2582.6,1.7929]
[1729681039744,0.3874,2582.7,2582.6,1.7929]
[1729681043551,0.3874,2582.7,2582.6,3.1929]
[1729681043856,0.3874,2582.7,2582.6,5.0007]
[1729681044557,1.7874,2582.7,2582.6,3.6007]
[1729681044750,1.7874,2582.7,2582.6,0.3929]
[1729681048151,5.6594,2582.7,2582.6,0.3929]
[1729681048353,0.38743,2582.5,2582.4,0.4132]
[1729681048558,1.78743,2582.5,2582.4,0.4132]
[1729681051161,5.65943,2582.5,2582.4,0.4132]
[1729681053664,5.65943,2582.5,2582.4,1.8132]
[1729681053665,0.38743,2582.5,2582.4,1.8132]
[1729681054057,5.65943,2582.5,2582.4,0.4132]
[1729681055759,1.78743,2582.5,2582.4,0.4132]
[1729681055956,1.78743,2582.5,2582.4,1.8132]
[1729681055957,0.38743,2582.5,2582.4,1.8132]
[1729681057859,5.65943,2582.5,2582.1,0.8382]
[1729681058055,0.96863,2582.1,2581.6,1.4]
[1729681058265,0.96863,2582.1,2581.5,3.2078]
[1729681058266,1.4,2581.9,2581.8,0.4034]
[1729681058454,1.78748,2581.9,2581.8,1.8034]
[1729681058958,1.78748,2581.9,2581.8,0.4034]
[1729681061351,0.38748,2581.9,2581.8,1.8034]
[1729681062156,1.78748,2581.9,2581.8,0.4034]
[1729681062358,0.38748,2581.9,2581.8,1.8034]
[1729681062563,0.38748,2581.9,2581.8,2.1909]
[1729681062764,0.38748,2581.9,2581.8,1.8034]
[1729681062972,1.78748,2581.9,2581.8,1.8034]
[1729681063362,1.78748,2581.9,2581.8,0.4034]
[1729681064072,1.78748,2581.9,2581.8,1.8034]
[1729681064371,0.3875,2581.8,2581.7,1.22871]
[1729681064673,0.3875,2581.8,2581.7,2.62871]
[1729681065567,0.3875,2581.8,2581.7,1.22871]
[1729681065767,0.3875,2581.8,2581.7,2.6279]
[1729681066165,0.3875,2581.8,2581.7,3.01541]
[1729681066365,0.3875,2581.8,2581.7,6.88901]
[1729681068668,0.3875,2581.8,2581.7,10.09681]
[1729681069577,0.3875,2581.8,2581.7,6.88901]
[1729681069775,0.3875,2581.8,2581.7,10.09681]
[1729681070170,0.3875,2581.8,2581.7,9.7093]
[1729681070869,1.7875,2581.8,2581.7,8.3093]
[1729681071175,1.7875,2581.8,2581.7,1.2279]
[1729681072176,0.38751,2581.7,2581.6,42.2]
[1729681072366,0.38751,2581.7,2581.6,42.6082]
[1729681077271,1.78751,2581.7,2581.6,42.6082]
[1729681077574,1.78751,2581.7,2581.6,41.2082]
[1729681082381,0.38751,2581.7,2581.6,42.6082]
[1729681082880,0.96863,2582.2,2581.6,46.4818]
[1729681083081,0.38744,2582.2,2582.1,1.78745]
[1729681083280,0.96857,2582.3,2582.0,0.57685127]
[1729681083281,0.38746,2582.1,2582.0,0.57685127]
[1729681083481,0.38746,2582.1,2582.0,1.19754]
[1729681083683,1.4,2582.3,2582.0,0.8101]
[1729681083876,1.78745,2582.1,2582.0,0.8101]
[1729681084180,1.78745,2582.1,2582.0,2.2101]
[1729681084375,0.38745,2582.1,2582.0,4.40537]
[1729681086486,0.38745,2582.1,2582.0,0.8101]
[1729681087787,0.38745,2582.1,2582.0,4.40537]
[1729681087989,0.38745,2582.1,2582.0,1.19757]
[1729681088187,0.38745,2582.1,2582.0,4.40537]
[1729681088986,0.38745,2582.1,2582.0,7.08870291]
[1729681089181,0.38745,2582.1,2582.0,5.42006348]
[1729681089386,0.38745,2582.1,2582.0,7.08873386]
[1729681089687,0.38745,2582.2,2582.1,0.38743]
[1729681089995,0.38745,2582.2,2582.1,3.06959803]
[1729681091186,0.38745,2582.2,2582.1,1.40092765]
[1729681091688,0.38745,2582.2,2582.1,3.06910083]
[1729681093805,0.38745,2582.2,2582.1,3.06898569]
[1729681094393,0.38745,2582.2,2582.1,1.40092765]
[1729681095188,0.38745,2582.2,2582.1,4.60872765]
[1729681095387,0.38745,2582.2,2582.1,5.00162765]
[1729681097396,0.38745,2582.2,2582.1,1.79382765]
[1729681097896,0.96851,2582.5,2582.2,0.38742]
[1729681097897,0.38744,2582.3,2582.2,0.38742]
[1729681102299,0.38744,2582.3,2582.2,1.40091765]
[1729681102702,0.3874,2582.6,2582.5,0.38738]
[1729681103000,0.3874,2582.6,2582.5,4.60867765]
[1729681104393,0.3874,2582.6,2582.5,45.40867765]
[1729681104894,0.3874,2582.6,2582.5,47.07518104]
[1729681105095,0.3874,2582.6,2582.5,47.07516422]
[1729681105295,3.98831,2583.0,2582.5,45.02129765]
[1729681105497,0.38737,2582.8,2582.7,0.38735]
[1729681106306,0.38737,2582.7,2582.6,1.78735]
[1729681106697,1.78737,2582.7,2582.6,1.78735]
[1729681107201,1.78737,2582.7,2582.5,45.40881336]
[1729681107202,1.4,2582.7,2582.5,44.39531571]
[1729681107398,1.78738,2582.6,2582.5,44.78270571]
[1729681107593,1.78738,2582.6,2582.5,44.39531571]
[1729681108203,1.78738,2582.6,2582.5,45.79531571]
[1729681108591,1.78738,2582.6,2582.5,46.18270571]
[1729681109702,1.78738,2582.6,2582.5,45.79531571]
[1729681110102,1.78738,2582.6,2582.5,45.4078]
[1729681110504,0.38738,2582.6,2582.5,45.4078]
[1729681113500,1.4,2582.6,2582.4,0.3908]
[1729681113713,0.38742,2582.3,2582.2,0.4163]
[1729681113905,1.78742,2582.3,2582.2,0.4163]
[1729681114203,1.78742,2582.3,2582.2,41.2163]
[1729681114509,1.78742,2582.3,2582.2,42.2]
[1729681114811,0.38742,2582.3,2582.2,42.2]
[1729681118514,0.38742,2582.3,2582.2,42.58744]
[1729681119506,0.38742,2582.3,2582.2,41.18744]
[1729681119710,0.38742,2582.3,2582.2,42.2]
[1729681121011,0.38742,2582.3,2582.2,42.58744]
[1729681121614,0.4266,2582.7,2582.2,42.2]
[1729681121916,0.38736,2582.7,2582.6,4.6078]
[1729681122115,0.38736,2582.7,2582.6,4.99518]
[1729681123016,0.38736,2582.7,2582.6,5.38108]
[1729681124218,0.38736,2582.7,2582.6,3.5937]
[1729681124611,0.38736,2582.8,2582.7,0.38734]
[1729681125215,0.38736,2582.8,2582.7,41.18734]
[1729681127322,0.38736,2582.8,2582.7,48.26714]
[1729681127521,0.38734,2583.0,2582.9,0.38732]
[1729681129229,0.38734,2583.0,2582.9,3.02]
[1729681129725,0.38734,2583.0,2582.7,45.02129765]
[1729681129726,0.38735,2582.8,2582.7,45.02129765]
[1729681130027,0.38735,2582.8,2582.7,40.8]
[1729681130224,0.38736,2582.7,2582.6,0.3859]
[1729681130418,0.38736,2582.7,2582.4,4.22129765]
[1729681130419,0.38739,2582.5,2582.4,4.22129765]
[1729681130614,0.38742,2582.3,2582.2,2.64152765]
[1729681130825,0.38742,2582.3,2582.2,4.30924156]
[1729681131021,0.38742,2582.3,2582.2,2.64152765]
[1729681131334,0.38742,2582.3,2582.2,43.44152765]
[1729681131529,0.38742,2582.3,2582.2,44.09584794]
[1729681131721,0.38742,2582.3,2582.2,45.61788816]
[1729681132326,0.38742,2582.4,2582.3,0.38741]
[1729681132521,0.38742,2582.4,2582.3,3.57738369]
[1729681133117,0.38742,2582.4,2582.3,2.05534347]
[1729681133322,0.38742,2582.4,2582.3,3.57738369]
[1729681135928,0.38742,2582.4,2582.3,44.37738369]
[1729681136126,0.38742,2582.4,2582.3,43.98997369]
[1729681136524,0.38742,2582.4,2582.3,42.46793347]
[1729681136731,0.38742,2582.4,2582.3,43.98997369]
[1729681137723,0.38742,2582.4,2582.3,44.37739369]
[1729681138324,0.38742,2582.4,2582.3,42.85535347]
[1729681138521,0.38742,2582.4,2582.3,44.37739369]
[1729681140536,0.38742,2582.4,2582.3,42.85595642]
[1729681140732,0.38742,2582.4,2582.3,44.37799664]
[1729681141435,0.38742,2582.4,2582.3,43.99057664]
[1729681141831,0.38742,2582.4,2582.3,44.37799664]
[1729681142325,0.38742,2582.4,2582.3,44.3762838]
[1729681144144,0.38742,2582.4,2582.3,47.5840838]
[1729681144331,0.38742,2582.4,2582.3,48.9840838]
[1729681144537,0.3874,2582.5,2582.4,0.38738]
[1729681144736,0.3874,2582.5,2582.4,4.97583604]
[1729681145142,3.18987,2582.9,2582.5,0.38737]
[1729681145143,0.38739,2582.6,2582.5,0.38737]
[1729681145327,0.38739,2582.6,2582.5,4.97577178]
[1729681145733,0.38739,2582.6,2582.5,45.77577178]
[1729681146738,0.38739,2582.6,2582.5,43.60079262]
[1729681148741,0.38739,2582.6,2582.5,43.98739262]
[1729681152247,0.38739,2582.6,2582.5,45.65595115]
[1729681152642,0.38739,2582.6,2582.5,43.98739262]
[1729681153739,0.38739,2582.6,2582.5,47.19519262]
[1729681154350,0.38739,2582.6,2582.5,48.86379363]
[1729681154552,0.38739,2582.6,2582.5,49.37046564]
[1729681158756,0.38739,2582.6,2582.5,49.37039111]
[1729681160254,0.38739,2582.6,2582.5,47.85029648]
[1729681162764,0.38738,2582.7,2582.6,46.60946227]
[1729681163258,0.38738,2582.7,2582.6,46.60959589]
[1729681163465,0.38738,2582.7,2582.6,46.61007278]
[1729681164656,0.38738,2582.7,2582.6,49.81787278]
[1729681165760,0.3874,2582.7,2582.6,49.81791278]
[1729681167657,0.3874,2582.7,2582.6,48.14890941]
[1729681167862,0.3874,2582.7,2582.6,49.81893277]
[1729681168158,0.3874,2582.7,2582.6,48.14890941]
[1729681168362,0.3874,2582.7,2582.6,49.81892342]
[1729681168955,0.3874,2582.7,2582.6,46.61112342]
[1729681169160,0.3874,2582.7,2582.6,49.81892342]
[1729681169869,0.3874,2582.7,2582.6,49.81990953]
[1729681171463,0.3874,2582.7,2582.6,46.61210953]
[1729681171654,0.3874,2582.7,2582.6,49.81990953]
[1729681172865,0.3874,2582.7,2582.6,49.82020103]
[1729681173965,0.3874,2582.7,2582.6,46.61240103]
[1729681174367,0.3874,2582.7,2582.6,49.82020103]
[1729681176662,0.3874,2582.7,2582.6,48.29860551]
[1729681177171,0.3874,2582.7,2582.6,45.09080551]
[1729681177866,0.3874,2582.7,2582.6,45.09176153]
[1729681178562,0.3874,2582.7,2582.6,46.61458908]
[1729681178861,0.3874,2582.7,2582.6,45.09176153]
[1729681184973,0.3874,2582.7,2582.6,46.61477215]
[1729681186370,0.3874,2582.7,2582.6,47.00718167]
[1729681187275,0.3874,2582.7,2582.6,47.00755122]
[1729681187472,0.3874,2582.7,2582.6,44.8277417]
[1729681187665,0.3874,2582.7,2582.6,44.04875799]
[1729681187976,0.3874,2582.7,2582.6,46.61552433]
[1729681191878,0.3874,2582.7,2582.6,43.42051]
[1729681192070,0.3874,2582.7,2582.6,45.09279663]
[1729681194066,0.3874,2582.7,2582.6,47.11989871]
[1729681194868,0.3874,2582.7,2582.6,45.09279663]
[1729681196680,0.3874,2582.7,2582.6,45.09265022]
[1729681198883,0.3874,2582.7,2582.6,47.1197523]
[1729681199076,0.4161,2582.9,2582.6,47.1197523]
[1729681199279,0.38739,2582.9,2582.8,3.31089592]
[1729681199486,0.38739,2582.9,2582.8,4.9828653]
[1729681199677,0.38739,2582.9,2582.8,3.86061022]
[1729681199873,0.38739,2582.9,2582.8,46.18393597]
[1729681200482,0.96828,2583.4,2582.8,52.03699597]
[1729681200678,0.38729,2583.4,2583.3,1.4]
[1729681200882,0.38729,2583.4,2583.3,1.78731]
[1729681201085,0.38729,2583.4,2583.3,3.03101]
[1729681201388,0.38729,2583.5,2583.4,0.38728]
[1729681201581,0.38729,2583.5,2583.4,1.78728]
[1729681201780,0.38729,2583.5,2583.4,42.58728]
[1729681202390,0.38729,2583.5,2583.4,42.58729]
[1729681203093,1.78729,2583.5,2583.4,40.8]
[1729681203287,0.79709,2583.5,2583.4,42.2]
[1729681204287,2.19709,2583.5,2583.4,42.2]
[1729681204491,5.6802,2583.5,2583.1,1.01531422]
[1729681204682,1.4,2583.2,2582.9,1.01531422]
[1729681204888,1.4,2583.2,2582.7,3.2078]
[1729681204889,2.36841,2583.0,2582.6,1.01531422]
[1729681205083,0.3874,2582.7,2582.6,2.41531422]
[1729681205288,0.3874,2582.7,2582.6,1.4]
[1729681206602,0.3874,2582.7,2582.6,1.78741]
[1729681206889,0.3874,2582.7,2582.6,1.4]
[1729681207085,0.3874,2582.7,2582.6,2.41531422]
[1729681207283,0.3874,2582.7,2582.6,2.80272422]
[1729681207482,0.3874,2582.7,2582.6,1.78741]
[1729681208202,2.36841,2583.0,2582.6,1.78741]
[1729681208385,0.3874,2582.8,2582.7,1.40269422]
[1729681208590,0.3874,2582.8,2582.7,3.07220505]
[1729681208789,0.3874,2582.8,2582.7,2.05689083]
[1729681208996,0.96835,2583.2,2582.7,3.58148216]
[1729681209189,0.38737,2582.9,2582.8,1.80299705]
[1729681209396,0.38737,2582.9,2582.8,2.458267]
[1729681209587,0.38737,2582.9,2582.8,3.858267]
[1729681209793,0.38737,2582.9,2582.8,8.58903833]
[1729681210109,0.38737,2583.0,2582.9,0.38735]
[1729681210398,0.38737,2583.0,2582.9,4.47035523]
[1729681211394,0.38737,2583.0,2582.9,4.47023863]
[1729681211590,0.38737,2583.0,2582.9,2.80110295]
[1729681212794,0.38737,2583.0,2582.9,4.08266355]
[1729681212997,0.38737,2583.0,2582.9,1.4]
[1729681213994,0.38737,2583.0,2582.9,2.41375295]
[1729681214197,0.38737,2583.0,2582.9,1.4]
[1729681215094,0.38737,2583.0,2582.9,1.78737]
[1729681216702,0.38737,2583.0,2582.9,2.80112295]
[1729681217196,0.38737,2583.0,2582.9,4.47444767]
[1729681217396,0.38737,2583.0,2582.9,2.80112295]
[1729681221000,0.38737,2583.0,2582.9,3.20002295]
[1729681221794,0.38737,2583.0,2582.9,2.81265295]
[1729681223197,5.2712,2583.0,2582.8,4.22155295]
[1729681223393,0.38738,2582.8,2582.7,1.789]
[1729681225805,0.80498,2582.8,2582.7,1.789]
[1729681235107,4.67698,2582.8,2582.7,1.4]
[1729681241218,0.80498,2582.8,2582.7,1.4]
[1729681243416,0.80498,2582.8,2582.6,1.4]
[1729681243417,1.8176,2582.8,2582.6,1.4]
[1729681243618,2.20498,2582.8,2582.7,1.4]
[1729681244820,1.8176,2582.8,2582.7,1.4]
[1729681245021,5.6896,2582.8,2582.5,0.8253]
[1729681245216,1.4,2582.6,2582.5,2.2253]
[1729681248519,0.4176,2582.8,2582.5,2.2253]
[1729681248726,1.4,2582.8,2582.7,1.4]
[1729681249117,9.53950333,2582.8,2582.7,1.4]
[1729681249317,9.53950333,2582.8,2582.6,1.7935]
[1729681249519,1.8244,2582.7,2582.6,1.7935]
[1729681249719,1.8244,2582.7,2582.6,0.3935]
[1729681250418,5.6964,2582.7,2582.5,2.2253]
[1729681250625,1.4,2582.6,2582.5,2.2253]
[1729681250927,5.63914562,2582.6,2582.5,0.4056]
[1729681251123,9.51114562,2582.6,2582.3,42.65105295]
[1729681251324,1.4,2582.4,2582.3,43.0373]
[1729681254631,1.4,2582.5,2582.3,43.0373]
[1729681256029,1.4,2582.5,2582.4,1.4]
[1729681256435,5.272,2582.5,2582.4,1.4]
[1729681256843,1.4,2582.5,2582.4,1.4]
[1729681257039,3.2078,2582.7,2582.4,2.8]